fUST/lending_fUST_20260510
["ID","MTS","AMOUNT","RATE_DAILY","PERIOD"]
[421938204,1778352658000,-13362.14,0.00013698,2]
[421938216,1778352658000,-500.0,0.00013698,2]
[421938205,1778352658000,-500.0,0.00013698,2]
[421938206,1778352658000,-500.0,0.00013698,2]
[421938198,1778352658000,-1119.62,0.00013698,2]
[421938232,1778352658000,-500.0,0.00013698,2]
[421938187,1778352658000,-501.75436415,0.00013698,2]
[421938233,1778352658000,-947.74,0.00013698,2]
[421938253,1778352658000,-500.0,0.00013698,2]
[421938263,1778352658000,-500.0,0.00013698,2]
[421938259,1778352658000,-500.0,0.00013698,2]
[421938260,1778352658000,-500.0,0.00013698,2]
[421938262,1778352658000,-500.0,0.00013698,2]
[421938261,1778352658000,-500.0,0.00013698,2]
[421938269,1778352658000,-500.0,0.00013698,2]
[421938275,1778352658000,-713.58,0.00013698,2]
[421938271,1778352658000,-526.86,0.00013698,2]
[421938265,1778352658000,-500.0,0.00013698,2]
[421938266,1778352658000,-500.0,0.00013698,2]
[421938273,1778352658000,-503.08,0.00013698,2]
[421938272,1778352658000,-511.3,0.00013698,2]
[421938276,1778352658000,-1200.3,0.00013698,2]
[421938267,1778352658000,-500.0,0.00013698,2]
[421938274,1778352658000,-1110.63,0.00013698,2]
[421938277,1778352658000,-779.15,0.00013698,2]
[421938278,1778352658000,-156.0,0.00013699,2]
[421938279,1778352658000,-160.0,0.00013699,2]
[421938231,1778352658000,-962.42,0.00013698,2]
[421938270,1778352658000,-500.0,0.00013698,2]
[421938258,1778352658000,-500.0,0.00013698,2]
[421938268,1778352658000,-500.0,0.00013698,2]
[421938255,1778352658000,-500.0,0.00013698,2]
[421938257,1778352658000,-500.0,0.00013698,2]
[421938236,1778352658000,-1710.79,0.00013698,2]
[421938238,1778352658000,-2948.1,0.00013698,2]
[421938234,1778352658000,-1332.81,0.00013698,2]
[421938237,1778352658000,-557.58,0.00013698,2]
[421938240,1778352658000,-2660.74,0.00013698,2]
[421938242,1778352658000,-1927.92,0.00013698,2]
[421938243,1778352658000,-794.28,0.00013698,2]
[421938245,1778352658000,-500.0,0.00013698,2]
[421938251,1778352658000,-500.0,0.00013698,2]
[421938235,1778352658000,-1238.06,0.00013698,2]
[421938246,1778352658000,-1101.45,0.00013698,2]
[421938256,1778352658000,-500.0,0.00013698,2]
[421938244,1778352658000,-695.8,0.00013698,2]
[421938254,1778352658000,-746.71,0.00013698,2]
[421938264,1778352658000,-500.0,0.00013698,2]
[421938249,1778352658000,-500.0,0.00013698,2]
[421938252,1778352658000,-541.21,0.00013698,2]
[421938248,1778352658000,-500.0,0.00013698,2]
[421938247,1778352658000,-500.0,0.00013698,2]
[421938250,1778352658000,-500.0,0.00013698,2]
[421938241,1778352658000,-2757.49,0.00013698,2]
[421938298,1778352659000,-500.0,0.00013972,2]
[421938302,1778352659000,-632.04,0.00013972,2]
[421938292,1778352659000,-153.6808759,0.00013951,2]
[421938295,1778352659000,-707.7496,0.00013972,2]
[421938294,1778352659000,-3920.56957638,0.00013963,2]
[421938301,1778352659000,-500.0,0.00013972,2]
[421938306,1778352659000,-500.0,0.00013972,2]
[421938305,1778352659000,-500.0,0.00013972,2]
[421938304,1778352659000,-539.7,0.00013972,2]
[421938308,1778352659000,-500.0,0.00013972,2]
[421938299,1778352659000,-500.0,0.00013972,2]
[421938316,1778352659000,-1451.36,0.00013972,2]
[421938300,1778352659000,-500.0,0.00013972,2]
[421938297,1778352659000,-500.0,0.00013972,2]
[421938285,1778352659000,-1000.0,0.00013699,2]
[421938303,1778352659000,-1136.28,0.00013972,2]
[421938296,1778352659000,-654.2967,0.00013972,2]
[421938293,1778352659000,-286.39690091,0.00013963,2]
[421938286,1778352659000,-157.72,0.00013699,2]
[421938287,1778352659000,-500.0,0.00013738,2]
[421938284,1778352659000,-1561.0,0.00013699,2]
[421938290,1778352659000,-500.0,0.00013777,2]
[421938283,1778352659000,-1000.0,0.00013699,2]
[421938281,1778352659000,-500.0,0.00013699,2]
[421938280,1778352659000,-185.33,0.00013699,2]
[421938289,1778352659000,-500.0,0.00013777,2]
[421938288,1778352659000,-500.11833454,0.00013738,2]
[421938309,1778352659000,-500.0,0.00013972,2]
[421938291,1778352659000,-500.0,0.00013777,2]
[421938315,1778352659000,-2498.94,0.00013972,2]
[421938282,1778352659000,-500.0,0.00013699,2]
[421938314,1778352659000,-598.44,0.00013972,2]
[421938339,1778352659000,-2075.06695042,0.00013972,2]
[421938338,1778352659000,-756.93,0.00013972,2]
[421938340,1778352659000,-585.67304958,0.00013972,2]
[421938307,1778352659000,-996.71,0.00013972,2]
[421938334,1778352659000,-557.58,0.00013972,2]
[421938337,1778352659000,-1160.27752904,0.00013972,2]
[421938336,1778352659000,-844.23617242,0.00013972,2]
[421938335,1778352659000,-943.58629854,0.00013972,2]
[421938333,1778352659000,-1710.79,0.00013972,2]
[421938332,1778352659000,-1238.06,0.00013972,2]
[421938328,1778352659000,-962.42,0.00013972,2]
[421938331,1778352659000,-1332.81,0.00013972,2]
[421938330,1778352659000,-947.74,0.00013972,2]
[421938329,1778352659000,-500.0,0.00013972,2]
[421938341,1778352659000,-952.50535764,0.00013972,2]
[421938326,1778352659000,-211.76308664,0.00013972,2]
[421938327,1778352659000,-1714.99691336,0.00013972,2]
[421938311,1778352659000,-1688.15,0.00013972,2]
[421938313,1778352659000,-1119.62,0.00013972,2]
[421938312,1778352659000,-555.45,0.00013972,2]
[421938318,1778352659000,-1099.83,0.00013972,2]
[421938320,1778352659000,-1368.76,0.00013972,2]
[421938310,1778352659000,-500.0,0.00013972,2]
[421938317,1778352659000,-13362.14,0.00013972,2]
[421938319,1778352659000,-2350.62,0.00013972,2]
[421938322,1778352659000,-1115.35,0.00013972,2]
[421938323,1778352659000,-590.38,0.00013972,2]
[421938324,1778352659000,-1446.54,0.00013972,2]
[421938325,1778352659000,-668.86,0.00013972,2]
[421938321,1778352659000,-500.0,0.00013972,2]
[421938350,1778352660000,-504.2,0.00010958,2]
[421938369,1778352660000,-391.50097069,0.00011506,2]
[421938362,1778352660000,-500.0,0.00011232,2]
[421938357,1778352660000,-589.38753036,0.00011232,2]
[421938358,1778352660000,-600.58847496,0.00011232,2]
[421938355,1778352660000,-500.0,0.00010958,2]
[421938356,1778352660000,-500.0,0.00011232,2]
[421938354,1778352660000,-500.0,0.00010958,2]
[421938349,1778352660000,-500.0,0.00010958,2]
[421938347,1778352660000,-500.0,0.00010958,2]
[421938360,1778352660000,-500.0,0.00011232,2]
[421938359,1778352660000,-500.0,0.00011232,2]
[421938351,1778352660000,-500.0,0.00010958,2]
[421938352,1778352660000,-500.0,0.00010958,2]
[421938353,1778352660000,-500.0,0.00010958,2]
[421938371,1778352660000,-500.0,0.0001178,2]
[421938345,1778352660000,-500.0,0.00010958,2]
[421938346,1778352660000,-500.0,0.00010958,2]
[421938344,1778352660000,-3881.35,0.00010848,2]
[421938343,1778352660000,-485.7107963,0.00010848,2]
[421938348,1778352660000,-500.0,0.00010958,2]
[421938373,1778352660000,-506.16,0.0001178,2]
[421938368,1778352660000,-500.0,0.00011506,2]
[421938372,1778352660000,-504.2,0.0001178,2]
[421938387,1778352660000,-2466.37331664,0.00013671,2]
[421938388,1778352660000,-756.85469116,0.00013671,2]
[421938386,1778352660000,-500.0,0.00011232,2]
[421938384,1778352660000,-504.2,0.00013424,2]
[421938382,1778352660000,-504.2,0.00012876,2]
[421938383,1778352660000,-504.2,0.0001315,2]
[421938381,1778352660000,-500.0,0.00012876,2]
[421938380,1778352660000,-504.2,0.00012602,2]
[421938342,1778352660000,-632.9392037,0.00010848,2]
[421938379,1778352660000,-500.0,0.00012602,2]
[421938376,1778352660000,-504.2,0.00012054,2]
[421938385,1778352660000,-3150.86888582,0.00013671,2]
[421938375,1778352660000,-500.0,0.00012054,2]
[421938377,1778352660000,-500.0,0.00012054,2]
[421938374,1778352660000,-500.0,0.0001178,2]
[421938367,1778352660000,-504.2,0.00011506,2]
[421938363,1778352660000,-500.0,0.00011232,2]
[421938361,1778352660000,-504.2,0.00011232,2]
[421938364,1778352660000,-500.0,0.00011232,2]
[421938366,1778352660000,-500.0,0.00011506,2]
[421938370,1778352660000,-500.0,0.00011506,2]
[421938365,1778352660000,-500.0,0.00011506,2]
[421938378,1778352660000,-504.2,0.00012328,2]
[421938398,1778352932000,2000.0,0.00019178,120]
[421938399,1778352949000,532.0,0.00019178,120]
[421938403,1778353272000,-5000.0,9.93e-05,2]
[421938447,1778353832000,-1071.458,7.524e-05,2]
[421938445,1778353832000,-749.30807725,7.524e-05,2]
[421938443,1778353832000,-798.71078478,7.524e-05,2]
[421938441,1778353832000,-1237.30973074,7.524e-05,2]
[421938518,1778353838000,-300.0,7.751e-05,2]
[421938526,1778353838000,-12400.10885374,9.425e-05,2]
[421938529,1778353838000,-335.006811,0.0001,2]
[421938528,1778353838000,-864.0,9.565e-05,2]
[421938530,1778353838000,-12512.1987194,0.0001,2]
[421938527,1778353838000,-461.00443234,9.562e-05,2]
[421938537,1778353838000,-1404.0,0.00010276,2]
[421938538,1778353838000,-199.04098564,0.00010422,2]
[421938533,1778353838000,-160.0,0.00010222,2]
[421938519,1778353838000,-300.0,7.751e-05,2]
[421938532,1778353838000,-160.0,0.00010222,2]
[421938535,1778353838000,-2201.0,0.00010276,2]
[421938531,1778353838000,-161.5993154,0.00010222,2]
[421938536,1778353838000,-647.0,0.00010276,2]
[421938540,1778353838000,-388.3869658,0.00010508,2]
[421938550,1778353838000,-500.0,0.00010508,2]
[421938534,1778353838000,-160.0,0.00010222,2]
[421938524,1778353838000,-200.85,8.422e-05,7]
[421938525,1778353838000,-720.0,8.696e-05,2]
[421938515,1778353838000,-300.0,7.751e-05,2]
[421938503,1778353838000,-1143.21340723,7.524e-05,2]
[421938504,1778353838000,-390.68172232,7.562e-05,2]
[421938509,1778353838000,-300.0,7.751e-05,2]
[421938510,1778353838000,-300.0,7.751e-05,2]
[421938511,1778353838000,-300.0,7.751e-05,2]
[421938508,1778353838000,-300.0,7.751e-05,2]
[421938505,1778353838000,-300.0,7.599e-05,2]
[421938507,1778353838000,-300.0,7.751e-05,2]
[421938523,1778353838000,-200.0,8.422e-05,2]
[421938513,1778353838000,-300.0,7.751e-05,2]
[421938516,1778353838000,-300.0,7.751e-05,2]
[421938521,1778353838000,-300.0,7.751e-05,2]
[421938522,1778353838000,-600.0,7.905e-05,2]
[421938512,1778353838000,-300.0,7.751e-05,2]
[421938514,1778353838000,-300.0,7.751e-05,2]
[421938520,1778353838000,-300.0,7.751e-05,2]
[421938541,1778353838000,-500.0,0.00010508,2]
[421938517,1778353838000,-300.0,7.751e-05,2]
[421938546,1778353838000,-500.0,0.00010508,2]
[421938506,1778353838000,-7704.87488818,7.6e-05,2]
[421938544,1778353838000,-245.52879096,0.00010508,2]
[421938564,1778353838000,-172.45014956,0.00010957,2]
[421938567,1778353838000,-710.41943334,0.00010957,2]
[421938569,1778353838000,-710.41943334,0.00010957,2]
[421938580,1778353838000,-772.58113374,0.00010957,2]
[421938570,1778353838000,-710.41943334,0.00010957,2]
[421938577,1778353838000,-710.41943334,0.00010957,2]
[421938579,1778353838000,-710.41943334,0.00010957,2]
[421938574,1778353838000,-710.41943334,0.00010957,2]
[421938576,1778353838000,-710.41943334,0.00010957,2]
[421938572,1778353838000,-710.41943334,0.00010957,2]
[421938575,1778353838000,-710.41943334,0.00010957,2]
[421938581,1778353838000,-772.58113374,0.00010957,2]
[421938578,1778353838000,-710.41943334,0.00010957,2]
[421938582,1778353838000,-772.58113374,0.00010957,2]
[421938573,1778353838000,-710.41943334,0.00010957,2]
[421938571,1778353838000,-710.41943334,0.00010957,2]
[421938539,1778353838000,-22112.0,0.00010507,2]
[421938566,1778353838000,-710.41943334,0.00010957,2]
[421938557,1778353838000,-1477.8415112,0.00010509,2]
[421938545,1778353838000,-635.17726268,0.00010508,2]
[421938565,1778353838000,-710.41943334,0.00010957,2]
[421938547,1778353838000,-500.0,0.00010508,2]
[421938549,1778353838000,-500.0,0.00010508,2]
[421938548,1778353838000,-455.24734367,0.00010508,2]
[421938542,1778353838000,-500.0,0.00010508,2]
[421938563,1778353838000,-710.41943334,0.00010957,2]
[421938551,1778353838000,-500.0,0.00010508,2]
[421938555,1778353838000,-19507.1685314,0.00010509,2]
[421938554,1778353838000,-69619.57692999,0.00010509,2]
[421938543,1778353838000,-500.0,0.00010508,2]
[421938553,1778353838000,-910.08050166,0.00010509,2]
[421938556,1778353838000,-3715.72626716,0.00010509,2]
[421938568,1778353838000,-710.41943334,0.00010957,2]
[421938558,1778353838000,-164023.23702409,0.00010509,2]
[421938559,1778353838000,-1000.0,0.00010522,2]
[421938562,1778353838000,-710.41943334,0.00010957,2]
[421938560,1778353838000,-29850.72636456,0.00010856,2]
[421938552,1778353838000,-500.0,0.00010508,2]
[421938561,1778353838000,-500.0,0.00010957,2]
[421938583,1778353839000,-381.04292145,0.00010957,2]
[421938623,1778353840000,-500.0,0.00010958,2]
[421938618,1778353840000,-500.0,0.00010958,2]
[421938616,1778353840000,-500.0,0.00010958,2]
[421938604,1778353840000,-391.53821229,0.00010957,2]
[421938610,1778353840000,-772.58113374,0.00010957,2]
[421938607,1778353840000,-772.58113374,0.00010957,2]
[421938605,1778353840000,-772.58113374,0.00010957,2]
[421938625,1778353840000,-104.01936376,0.00010958,2]
[421938612,1778353840000,-772.58113374,0.00010957,2]
[421938614,1778353840000,-500.0,0.00010958,2]
[421938621,1778353840000,-500.0,0.00010958,2]
[421938632,1778353840000,-500.0,0.00010958,2]
[421938627,1778353840000,-395.98063624,0.00010958,2]
[421938646,1778353840000,-500.0,0.00010958,2]
[421938629,1778353840000,-1613.4563,0.00010958,2]
[421938644,1778353840000,-500.0,0.00010958,2]
[421938642,1778353840000,-500.0,0.00010958,2]
[421938648,1778353840000,-500.0,0.00010958,2]
[421938638,1778353840000,-500.0,0.00010958,2]
[421938636,1778353840000,-500.0,0.00010958,2]
[421938634,1778353840000,-500.0,0.00010958,2]
[421938640,1778353840000,-500.0,0.00010958,2]
[421938771,1778353841000,-500.0,0.00010958,2]
[421938779,1778353841000,-500.0,0.00010958,2]
[421938776,1778353841000,-500.0,0.00010958,2]
[421938775,1778353841000,-500.0,0.00010958,2]
[421938772,1778353841000,-500.0,0.00010958,2]
[421938773,1778353841000,-500.0,0.00010958,2]
[421938780,1778353841000,-500.59046223,0.00010958,2]
[421938781,1778353841000,-537.81,0.00010958,2]
[421938774,1778353841000,-500.0,0.00010958,2]
[421938761,1778353841000,-500.0,0.00010958,2]
[421938769,1778353841000,-500.0,0.00010958,2]
[421938767,1778353841000,-500.0,0.00010958,2]
[421938762,1778353841000,-500.0,0.00010958,2]
[421938778,1778353841000,-500.0,0.00010958,2]
[421938768,1778353841000,-500.0,0.00010958,2]
[421938764,1778353841000,-500.0,0.00010958,2]
[421938763,1778353841000,-500.0,0.00010958,2]
[421938766,1778353841000,-500.0,0.00010958,2]
[421938765,1778353841000,-500.0,0.00010958,2]
[421938759,1778353841000,-500.0,0.00010958,2]
[421938770,1778353841000,-621.12258455,0.00010958,2]
[421938777,1778353841000,-500.0,0.00010958,2]
[421938793,1778353841000,-500.0,0.00010958,2]
[421938782,1778353841000,-500.0,0.00010958,2]
[421938801,1778353841000,-500.0,0.00010958,2]
[421938802,1778353841000,-500.0,0.00010958,2]
[421938760,1778353841000,-1257.1,0.00010958,2]
[421938797,1778353841000,-500.0,0.00010958,2]
[421938795,1778353841000,-500.0,0.00010958,2]
[421938804,1778353841000,-500.0,0.00010958,2]
[421938798,1778353841000,-500.0,0.00010958,2]
[421938799,1778353841000,-500.0,0.00010958,2]
[421938800,1778353841000,-500.0,0.00010958,2]
[421938783,1778353841000,-500.0,0.00010958,2]
[421938796,1778353841000,-500.0,0.00010958,2]
[421938789,1778353841000,-500.0,0.00010958,2]
[421938786,1778353841000,-500.0,0.00010958,2]
[421938790,1778353841000,-500.0,0.00010958,2]
[421938787,1778353841000,-500.0,0.00010958,2]
[421938791,1778353841000,-500.0,0.00010958,2]
[421938784,1778353841000,-500.0,0.00010958,2]
[421938788,1778353841000,-500.0,0.00010958,2]
[421938785,1778353841000,-500.0,0.00010958,2]
[421938794,1778353841000,-500.0,0.00010958,2]
[421938792,1778353841000,-500.0,0.00010958,2]
[421938803,1778353841000,-500.0,0.00010958,2]
[421938755,1778353841000,-500.0,0.00010958,2]
[421938750,1778353841000,-500.0,0.00010958,2]
[421938696,1778353841000,-166.8169117,0.00010958,2]
[421938702,1778353841000,-500.0,0.00010958,2]
[421938691,1778353841000,-500.0,0.00010958,2]
[421938694,1778353841000,-500.0,0.00010958,2]
[421938700,1778353841000,-500.0,0.00010958,2]
[421938698,1778353841000,-500.0,0.00010958,2]
[421938692,1778353841000,-500.0,0.00010958,2]
[421938718,1778353841000,-500.0,0.00010958,2]
[421938717,1778353841000,-500.0,0.00010958,2]
[421938716,1778353841000,-500.0,0.00010958,2]
[421938704,1778353841000,-500.0,0.00010958,2]
[421938709,1778353841000,-131.26076084,0.00010958,2]
[421938707,1778353841000,-500.0,0.00010958,2]
[421938720,1778353841000,-500.0,0.00010958,2]
[421938719,1778353841000,-500.0,0.00010958,2]
[421938681,1778353841000,-125.86910487,0.00010958,2]
[421938687,1778353841000,-500.0,0.00010958,2]
[421938689,1778353841000,-500.0,0.00010958,2]
[421938650,1778353841000,-500.0,0.00010958,2]
[421938652,1778353841000,-500.0,0.00010958,2]
[421938654,1778353841000,-500.0,0.00010958,2]
[421938664,1778353841000,-250.19651161,0.00010958,2]
[421938657,1778353841000,-78.41714326,0.00010958,2]
[421938668,1778353841000,-500.0,0.00010958,2]
[421938666,1778353841000,-249.80348839,0.00010958,2]
[421938661,1778353841000,-421.58285674,0.00010958,2]
[421938670,1778353841000,-500.0,0.00010958,2]
[421938672,1778353841000,-500.0,0.00010958,2]
[421938676,1778353841000,-500.0,0.00010958,2]
[421938674,1778353841000,-500.0,0.00010958,2]
[421938678,1778353841000,-374.13089513,0.00010958,2]
[421938685,1778353841000,-500.0,0.00010958,2]
[421938683,1778353841000,-500.0,0.00010958,2]
[421938713,1778353841000,-500.0,0.00010958,2]
[421938711,1778353841000,-368.73923916,0.00010958,2]
[421938753,1778353841000,-500.0,0.00010958,2]
[421938722,1778353841000,-500.0,0.00010958,2]
[421938742,1778353841000,-500.0,0.00010958,2]
[421938737,1778353841000,-500.0,0.00010958,2]
[421938738,1778353841000,-500.0,0.00010958,2]
[421938744,1778353841000,-500.0,0.00010958,2]
[421938743,1778353841000,-500.0,0.00010958,2]
[421938747,1778353841000,-500.0,0.00010958,2]
[421938748,1778353841000,-500.0,0.00010958,2]
[421938746,1778353841000,-500.0,0.00010958,2]
[421938749,1778353841000,-500.0,0.00010958,2]
[421938758,1778353841000,-500.0,0.00010958,2]
[421938751,1778353841000,-500.0,0.00010958,2]
[421938754,1778353841000,-500.0,0.00010958,2]
[421938756,1778353841000,-500.0,0.00010958,2]
[421938752,1778353841000,-500.0,0.00010958,2]
[421938714,1778353841000,-500.0,0.00010958,2]
[421938741,1778353841000,-500.0,0.00010958,2]
[421938736,1778353841000,-500.0,0.00010958,2]
[421938757,1778353841000,-500.0,0.00010958,2]
[421938740,1778353841000,-500.0,0.00010958,2]
[421938739,1778353841000,-500.0,0.00010958,2]
[421938723,1778353841000,-500.0,0.00010958,2]
[421938721,1778353841000,-500.0,0.00010958,2]
[421938733,1778353841000,-500.0,0.00010958,2]
[421938724,1778353841000,-500.0,0.00010958,2]
[421938725,1778353841000,-761.13,0.00010958,2]
[421938727,1778353841000,-500.0,0.00010958,2]
[421938732,1778353841000,-500.0,0.00010958,2]
[421938726,1778353841000,-500.0,0.00010958,2]
[421938729,1778353841000,-500.0,0.00010958,2]
[421938730,1778353841000,-500.0,0.00010958,2]
[421938731,1778353841000,-500.0,0.00010958,2]
[421938734,1778353841000,-500.0,0.00010958,2]
[421938745,1778353841000,-474.53605112,0.00010958,2]
[421938728,1778353841000,-500.0,0.00010958,2]
[421938735,1778353841000,-500.0,0.00010958,2]
[421938826,1778353842000,-500.0,0.00010958,2]
[421938812,1778353842000,-500.0,0.00010958,2]
[421938814,1778353842000,-500.0,0.00010958,2]
[421938815,1778353842000,-500.0,0.00010958,2]
[421938823,1778353842000,-500.0,0.00010958,2]
[421938820,1778353842000,-500.0,0.00010958,2]
[421938821,1778353842000,-500.0,0.00010958,2]
[421938818,1778353842000,-500.0,0.00010958,2]
[421938822,1778353842000,-508.10385316,0.00010958,2]
[421938817,1778353842000,-500.0,0.00010958,2]
[421938806,1778353842000,-500.0,0.00010958,2]
[421938809,1778353842000,-500.0,0.00010958,2]
[421938813,1778353842000,-500.0,0.00010958,2]
[421938811,1778353842000,-500.0,0.00010958,2]
[421938819,1778353842000,-500.0,0.00010958,2]
[421938810,1778353842000,-1122.17,0.00010958,2]
[421938808,1778353842000,-500.0,0.00010958,2]
[421938807,1778353842000,-500.0,0.00010958,2]
[421938805,1778353842000,-500.0,0.00010958,2]
[421938824,1778353842000,-500.0,0.00010958,2]
[421938816,1778353842000,-500.0,0.00010958,2]
[421938825,1778353842000,-500.0,0.00010958,2]
[421938837,1778353842000,-500.0,0.00010958,2]
[421938828,1778353842000,-500.0,0.00010958,2]
[421938850,1778353842000,-301.90378069,0.00010958,2]
[421938827,1778353842000,-500.0,0.00010958,2]
[421938847,1778353842000,-500.0,0.00010958,2]
[421938848,1778353842000,-98.22978069,0.00010958,2]
[421938849,1778353842000,-401.77021931,0.00010958,2]
[421938844,1778353842000,-422.26270655,0.00010958,2]
[421938843,1778353842000,-281.92751276,0.00010958,2]
[421938845,1778353842000,-500.0,0.00010958,2]
[421938841,1778353842000,-500.0,0.00010958,2]
[421938842,1778353842000,-218.07248724,0.00010958,2]
[421938840,1778353842000,-500.0,0.00010958,2]
[421938846,1778353842000,-500.0,0.00010958,2]
[421938834,1778353842000,-500.0,0.00010958,2]
[421938833,1778353842000,-500.0,0.00010958,2]
[421938836,1778353842000,-500.0,0.00010958,2]
[421938835,1778353842000,-500.0,0.00010958,2]
[421938839,1778353842000,-500.0,0.00010958,2]
[421938832,1778353842000,-500.0,0.00010958,2]
[421938838,1778353842000,-564.05132605,0.00010958,2]
[421938831,1778353842000,-500.0,0.00010958,2]
[421938830,1778353842000,-500.0,0.00010958,2]
[421938829,1778353842000,-500.0,0.00010958,2]
[421938860,1778353843000,-247.90378069,0.00010958,2]
[421938859,1778353843000,-198.09621931,0.00010958,2]
[421938881,1778353846000,-110.0957864,0.00010958,2]
[421938887,1778353846000,-500.0,0.00010958,2]
[421938884,1778353846000,-500.0,0.00010958,2]
[421938883,1778353846000,-500.0,0.00010958,2]
[421938885,1778353846000,-500.0,0.00010958,2]
[421938882,1778353846000,-500.0,0.00010958,2]
[421938877,1778353846000,-500.0,0.00010958,2]
[421938878,1778353846000,-500.0,0.00010958,2]
[421938873,1778353846000,-500.0,0.00010958,2]
[421938880,1778353846000,-389.9042136,0.00010958,2]
[421938876,1778353846000,-500.0,0.00010958,2]
[421938875,1778353846000,-500.0,0.00010958,2]
[421938870,1778353846000,-252.09621931,0.00010958,2]
[421938874,1778353846000,-500.0,0.00010958,2]
[421938872,1778353846000,-500.0,0.00010958,2]
[421938871,1778353846000,-500.0,0.00010958,2]
[421938888,1778353846000,-500.0,0.00010958,2]
[421938879,1778353846000,-500.0,0.00010958,2]
[421938890,1778353846000,-500.0,0.00010958,2]
[421938900,1778353846000,-500.0,0.00010958,2]
[421938886,1778353846000,-500.0,0.00010958,2]
[421938889,1778353846000,-500.0,0.00010958,2]
[421938920,1778353846000,-546.54,0.00010958,2]
[421938917,1778353846000,-500.0,0.00010958,2]
[421938918,1778353846000,-500.0,0.00010958,2]
[421938915,1778353846000,-500.0,0.00010958,2]
[421938916,1778353846000,-500.0,0.00010958,2]
[421938904,1778353846000,-500.0,0.00010958,2]
[421938914,1778353846000,-948.2,0.00010958,2]
[421938909,1778353846000,-317.11329343,0.00010958,2]
[421938919,1778353846000,-500.0,0.00010958,2]
[421938906,1778353846000,-182.88670657,0.00010958,2]
[421938902,1778353846000,-500.0,0.00010958,2]
[421938912,1778353846000,-500.0,0.00010958,2]
[421938895,1778353846000,-423.66753291,0.00010958,2]
[421938898,1778353846000,-76.33246709,0.00010958,2]
[421938894,1778353846000,-500.0,0.00010958,2]
[421938893,1778353846000,-436.62639608,0.00010958,2]
[421938892,1778353846000,-63.37360392,0.00010958,2]
[421938891,1778353846000,-500.0,0.00010958,2]
[421938974,1778353847000,-500.0,0.00010958,2]
[421938963,1778353847000,-500.0,0.00010958,2]
[421938956,1778353847000,-500.0,0.00010958,2]
[421938960,1778353847000,-500.0,0.00010958,2]
[421938959,1778353847000,-500.0,0.00010958,2]
[421938962,1778353847000,-500.0,0.00010958,2]
[421938955,1778353847000,-500.0,0.00010958,2]
[421938957,1778353847000,-500.0,0.00010958,2]
[421938952,1778353847000,-500.0,0.00010958,2]
[421938961,1778353847000,-500.0,0.00010958,2]
[421938964,1778353847000,-500.0,0.00010958,2]
[421938958,1778353847000,-500.0,0.00010958,2]
[421938975,1778353847000,-500.0,0.00010958,2]
[421938973,1778353847000,-500.0,0.00010958,2]
[421938966,1778353847000,-500.0,0.00010958,2]
[421938965,1778353847000,-500.0,0.00010958,2]
[421938968,1778353847000,-500.0,0.00010958,2]
[421938971,1778353847000,-500.0,0.00010958,2]
[421938969,1778353847000,-500.0,0.00010958,2]